bitfinex/quotes_SOLUSD_20230404
["timestamp","ask_amount","ask_price","bid_price","bid_amount"]
[1680600122681,17.0,20.619,20.604,20.0]
[1680600123401,20.0,20.618,20.604,20.0]
[1680600124578,37.0,20.617,20.598,50.77478952]
[1680600124781,37.0,20.617,20.594,14.19795886]
[1680600124990,37.0,20.617,20.595,12.15112048]
[1680600125881,20.0,20.616,20.595,12.15112048]
[1680600126083,37.0,20.615,20.596,17.0]
[1680600126284,20.0,20.614,20.596,17.0]
[1680600126488,20.0,20.614,20.596,29.15112048]
[1680600126889,130.3657,20.614,20.596,29.15112048]
[1680600127596,112.3265,20.613,20.596,29.15112048]
[1680600128001,20.0,20.612,20.596,29.15112048]
[1680600128990,112.3265,20.613,20.596,29.15112048]
[1680600129401,20.0,20.612,20.596,29.15112048]
[1680600132401,20.0,20.612,20.598,20.0]
[1680600132602,20.0,20.612,20.599,17.0]
[1680600134202,20.0,20.612,20.598,20.0]
[1680600135807,20.0,20.612,20.599,17.0]
[1680600140808,112.3265,20.613,20.599,17.0]
[1680600141395,20.0,20.612,20.599,17.0]
[1680600141705,112.3265,20.613,20.599,17.0]
[1680600142111,112.3265,20.613,20.6,20.0]
[1680600142411,110.3657,20.614,20.601,17.0]
[1680600142810,110.3657,20.614,20.6,17.0]
[1680600144712,20.0,20.613,20.6,17.0]
[1680600153316,20.0,20.613,20.6,29.15112048]
[1680600156120,110.3657,20.614,20.6,29.15112048]
[1680600158034,20.0,20.613,20.6,29.15112048]
[1680600159032,110.3657,20.614,20.6,29.15112048]
[1680600159535,20.0,20.613,20.6,29.15112048]
[1680600160425,110.3657,20.614,20.6,29.15112048]
[1680600160934,20.0,20.613,20.6,29.15112048]
[1680600167024,110.3657,20.614,20.6,29.15112048]
[1680600170745,20.0,20.613,20.6,29.15112048]
[1680600172132,110.3657,20.614,20.6,29.15112048]
[1680600176745,20.0,20.613,20.6,17.0]
[1680600177747,20.0,20.613,20.6,29.15112048]
[1680600181645,20.0,20.613,20.592,233.5046937]
[1680600182154,20.0,20.611,20.596,12.15112048]
[1680600182836,20.0,20.611,20.597,17.0]
[1680600183037,20.0,20.611,20.596,12.15112048]
[1680600183237,20.0,20.611,20.597,12.15112048]
[1680600184351,20.0,20.611,20.598,17.0]
[1680600194361,20.0,20.611,20.597,12.15112048]
[1680600196953,20.0,20.611,20.594,12.15112048]
[1680600197161,20.0,20.611,20.595,17.0]
[1680600197663,20.0,20.611,20.595,29.15112048]
[1680600200563,20.0,20.611,20.595,12.15112048]
[1680600200765,20.0,20.609,20.595,12.15112048]
[1680600203862,20.0,20.609,20.594,14.53467068]
[1680600204063,20.0,20.609,20.592,214.0873217]
[1680600204268,20.0,20.609,20.594,12.15112048]
[1680600210970,114.6472,20.612,20.595,17.0]
[1680600211471,114.6472,20.612,20.597,19.42]
[1680600211671,110.3657,20.614,20.598,17.0]
[1680600211855,110.3657,20.614,20.598,92.09230809]
[1680600212160,110.3657,20.614,20.6,28.03]
[1680600212361,110.3657,20.614,20.602,20.0]
[1680600212574,110.3657,20.614,20.603,17.0]
[1680600212870,109.7541,20.619,20.603,79.94118761]
[1680600213066,20.0,20.616,20.603,79.94118761]
[1680600213266,20.0,20.616,20.603,193.60408761]
[1680600214171,20.0,20.616,20.604,20.0]
[1680600214364,20.0,20.616,20.605,17.0]
[1680600216564,20.0,20.616,20.604,17.0]
[1680600223075,20.0,20.616,20.603,113.6629]
[1680600225970,20.0,20.616,20.604,17.0]
[1680600229475,39.402,20.616,20.603,113.6629]
[1680600230079,20.0,20.615,20.6,28.03]
[1680600230292,20.0,20.614,20.6,28.03]
[1680600231082,20.0,20.614,20.601,17.0]
[1680600231484,133.4411,20.614,20.601,17.0]
[1680600235685,133.4411,20.614,20.599,17.0]
[1680600236097,133.4411,20.614,20.599,29.15112048]
[1680600237778,20.0,20.613,20.599,29.15112048]
[1680600238688,133.4411,20.614,20.599,29.15112048]
[1680600241076,20.0,20.613,20.599,29.15112048]
[1680600242592,133.4411,20.614,20.599,29.15112048]
[1680600242889,20.0,20.613,20.599,29.15112048]
[1680600246199,133.4411,20.614,20.599,92.09230809]
[1680600247097,133.4411,20.614,20.6,20.0]
[1680600247293,133.4411,20.614,20.601,17.0]
[1680600254201,133.4411,20.614,20.6,17.0]
[1680600257305,133.4411,20.614,20.6,39.42]
[1680600258609,20.0,20.613,20.6,39.42]
[1680600259606,133.4411,20.614,20.6,39.42]
[1680600259904,20.0,20.613,20.599,12.15112048]
[1680600260107,20.0,20.613,20.594,118.38200275]
[1680600260293,20.0,20.613,20.596,12.15112048]
[1680600261106,109.55,20.612,20.596,12.15112048]
[1680600261308,109.55,20.612,20.597,17.0]
[1680600261690,109.55,20.612,20.597,29.15112048]
[1680600266407,20.0,20.611,20.597,29.15112048]
[1680600268105,109.55,20.612,20.597,29.15112048]
[1680600268807,20.0,20.611,20.597,29.15112048]
[1680600273619,20.0,20.611,20.597,17.0]
[1680600273820,20.0,20.611,20.598,17.0]
[1680600274117,20.0,20.611,20.595,17.0]
[1680600274496,20.0,20.611,20.595,79.94118761]
[1680600275810,17.0,20.61,20.595,79.94118761]
[1680600276008,39.42,20.61,20.595,62.94118761]
[1680600276206,20.0,20.609,20.595,62.94118761]
[1680600277802,20.0,20.609,20.595,75.09230809]
[1680600280020,20.0,20.609,20.595,62.94118761]
[1680600283823,20.0,20.609,20.595,75.09230809]
[1680600284622,20.0,20.609,20.595,62.94118761]
[1680600284825,37.0,20.608,20.591,54.20763218]
[1680600285022,37.0,20.608,20.587,60.37243879]
[1680600285411,20.0,20.607,20.587,60.37243879]
[1680600285605,37.0,20.606,20.587,60.37243879]
[1680600285812,20.0,20.605,20.587,60.37243879]
[1680600286122,37.0,20.604,20.588,12.15112048]
[1680600286518,20.0,20.603,20.588,12.15112048]
[1680600287025,130.7415,20.603,20.588,12.15112048]
[1680600290420,17.0,20.602,20.588,12.15112048]
[1680600298341,150.1565,20.603,20.588,12.15112048]
[1680600299334,150.1565,20.603,20.589,17.0]
[1680600299722,150.1565,20.603,20.587,17.0]
[1680600305139,150.1565,20.603,20.583,14.63493842]
[1680600305345,17.0,20.602,20.584,20.0]
[1680600305846,20.0,20.601,20.584,20.0]
[1680600306033,20.0,20.601,20.583,20.0]
[1680600306539,20.0,20.601,20.584,29.15112048]
[1680600306751,17.0,20.602,20.584,29.15112048]
[1680600307042,150.1565,20.603,20.585,12.15112048]
[1680600307420,150.1565,20.603,20.586,17.0]
[1680600307838,150.1565,20.603,20.586,29.15112048]
[1680600308647,150.1565,20.603,20.586,12.15112048]
[1680600308824,20.0,20.601,20.586,12.15112048]
[1680600309725,17.0,20.602,20.586,12.15112048]
[1680600310246,17.0,20.602,20.587,17.0]
[1680600310841,150.1565,20.603,20.587,17.0]
[1680600311158,150.1565,20.603,20.586,12.15112048]
[1680600311345,17.0,20.602,20.586,12.15112048]
[1680600311552,20.0,20.601,20.586,12.15112048]
[1680600311730,17.0,20.6,20.586,12.15112048]
[1680600315038,20.0,20.599,20.583,20.0]
[1680600315442,37.0,20.598,20.581,38.85324]
[1680600315652,19.423,20.594,20.581,38.85324]
[1680600315829,17.0,20.593,20.581,38.85324]
[1680600316236,20.0,20.592,20.581,38.85324]
[1680600316538,17.0,20.591,20.581,38.85324]
[1680600317239,20.0,20.59,20.581,38.85324]
[1680600317432,17.0,20.589,20.581,38.85324]
[1680600318041,20.0,20.588,20.581,38.85324]
[1680600318629,17.0,20.587,20.581,38.85324]
[1680600319160,20.0,20.586,20.581,38.85324]
[1680600320635,17.0,20.587,20.581,38.85324]
[1680600321940,20.0,20.588,20.581,38.85324]
[1680600322139,20.0,20.586,20.581,38.85324]
[1680600323235,20.0,20.588,20.581,38.85324]
[1680600323736,20.0,20.59,20.581,38.85324]
[1680600324136,20.0,20.591,20.581,38.85324]
[1680600324451,55.94,20.6,20.581,38.85324]
[1680600324655,20.0,20.595,20.581,38.85324]
[1680600326744,133.489,20.592,20.581,38.85324]
[1680600327354,133.489,20.592,20.575,19.44]
[1680600327652,133.489,20.592,20.576,17.0]
[1680600327847,133.489,20.592,20.576,29.15112048]
[1680600328049,133.489,20.592,20.577,20.0]
[1680600328355,133.489,20.592,20.578,17.0]
[1680600328849,113.489,20.592,20.578,17.0]
[1680600329057,113.489,20.592,20.579,20.0]
[1680600329259,113.489,20.592,20.58,17.0]
[1680600329946,113.489,20.592,20.58,29.15112048]
[1680600331859,109.479,20.596,20.58,29.15112048]
[1680600332047,20.0,20.595,20.581,20.0]
[1680600332247,20.0,20.595,20.582,17.0]
[1680600333564,20.0,20.595,20.581,17.0]
[1680600342571,20.0,20.594,20.581,17.0]
[1680600345765,20.0,20.595,20.581,17.0]
[1680600346865,20.0,20.594,20.581,17.0]
[1680600350456,20.0,20.594,20.58,12.15112048]
[1680600350657,17.0,20.593,20.572,40.94724236]
[1680600350871,20.0,20.592,20.573,40.0]
[1680600351751,20.0,20.592,20.574,12.15112048]
[1680600352667,132.4496,20.592,20.574,12.15112048]
[1680600353465,17.0,20.591,20.574,12.15112048]
[1680600353853,20.0,20.59,20.575,17.0]
[1680600354052,48.06,20.59,20.575,17.0]
[1680600354347,48.06,20.59,20.574,17.0]
[1680600354673,20.0,20.588,20.574,17.0]
[1680600355371,20.0,20.588,20.575,12.15112048]
[1680600368472,114.6459,20.589,20.575,31.59112048]
[1680600368778,114.6459,20.589,20.576,17.0]
[1680600368974,20.0,20.588,20.576,29.15112048]
[1680600369184,20.0,20.588,20.577,12.15112048]
[1680600369393,20.0,20.588,20.578,17.0]
[1680600369765,20.0,20.588,20.577,12.15112048]
[1680600371174,114.6459,20.589,20.577,12.15112048]
[1680600371966,114.6459,20.589,20.578,17.0]
[1680600372677,127.25547318,20.592,20.578,17.0]
[1680600372883,127.25547318,20.592,20.579,12.15112048]
[1680600373082,127.25547318,20.592,20.58,17.0]
[1680600373670,127.25547318,20.592,20.58,29.15112048]
[1680600375364,112.4496,20.592,20.581,20.0]
[1680600375565,112.4496,20.592,20.582,17.0]
[1680600375770,20.0,20.595,20.582,29.15112048]
[1680600375982,20.0,20.596,20.582,29.15112048]
[1680600380491,20.0,20.597,20.582,29.15112048]
[1680600381188,40.0,20.597,20.582,29.15112048]
[1680600381391,20.0,20.597,20.582,29.15112048]
[1680600382695,40.0,20.597,20.582,29.15112048]
[1680600383186,20.0,20.597,20.582,29.15112048]
[1680600383792,40.0,20.597,20.582,29.15112048]
[1680600384391,20.0,20.596,20.582,17.0]
[1680600385979,20.0,20.595,20.582,17.0]
[1680600390402,20.0,20.594,20.582,17.0]
[1680600391295,20.0,20.594,20.581,111.0153]
[1680600392189,20.0,20.594,20.578,12.15112048]
[1680600392390,20.0,20.594,20.579,17.0]
[1680600393702,20.0,20.594,20.574,111.4622]
[1680600393890,17.0,20.593,20.575,17.0]
[1680600394096,17.0,20.593,20.578,12.15112048]
[1680600394301,20.0,20.592,20.578,12.15112048]
[1680600395184,20.0,20.592,20.575,17.0]
[1680600395384,20.0,20.592,20.576,12.15112048]
[1680600395587,20.0,20.592,20.577,17.0]
[1680600396099,20.0,20.592,20.577,29.15112048]
[1680600406410,20.0,20.594,20.577,29.15112048]
[1680600406913,20.0,20.595,20.577,84.09815348]
[1680600408809,20.0,20.595,20.578,20.0]
[1680600409009,20.0,20.595,20.579,17.0]
[1680600410401,40.0,20.596,20.579,17.0]
[1680600411214,20.0,20.595,20.579,17.0]
[1680600411402,20.0,20.594,20.579,17.0]
[1680600415015,20.0,20.595,20.579,17.0]
[1680600416810,20.0,20.595,20.578,17.0]
[1680600418105,20.0,20.595,20.579,20.0]
[1680600418307,20.0,20.595,20.58,17.0]
[1680600419415,20.0,20.595,20.579,17.0]
[1680600420617,20.0,20.595,20.578,17.0]
[1680600422523,20.0,20.594,20.578,17.0]
[1680600423831,20.0,20.595,20.578,17.0]
[1680600428614,20.0,20.594,20.578,17.0]
[1680600429021,20.0,20.594,20.577,67.09815348]
[1680600429221,17.0,20.593,20.573,20.0]
[1680600429417,17.0,20.593,20.567,19.447]
[1680600429418,17.0,20.593,20.574,20.0]
[1680600429623,113.4695,20.592,20.572,20.0]
[1680600429815,132.0898,20.591,20.572,20.0]
[1680600430015,20.0,20.59,20.572,20.0]
[1680600430434,20.0,20.59,20.572,32.15112048]
[1680600430610,20.0,20.59,20.573,17.0]
[1680600430816,115.0898,20.591,20.575,20.0]
[1680600431020,115.0898,20.591,20.576,17.0]
[1680600433029,115.0898,20.591,20.576,29.15112048]
[1680600435826,20.0,20.59,20.576,29.15112048]
[1680600436028,115.0898,20.591,20.576,29.15112048]
[1680600442731,20.0,20.59,20.576,29.15112048]
[1680600443619,115.0898,20.591,20.576,29.15112048]
[1680600448533,20.0,20.59,20.576,29.15112048]
[1680600449037,115.0898,20.591,20.576,29.15112048]
[1680600451933,20.0,20.59,20.576,29.15112048]
[1680600452739,115.0898,20.591,20.576,29.15112048]
[1680600453132,115.0898,20.591,20.576,84.09815348]
[1680600461832,115.0898,20.591,20.576,29.15112048]
[1680600462142,22.28,20.59,20.576,29.15112048]
[1680600462345,20.0,20.589,20.576,29.15112048]
[1680600463545,42.28,20.59,20.576,29.15112048]
[1680600468045,22.28,20.59,20.576,29.15112048]
[1680600469253,42.28,20.59,20.576,29.15112048]
[1680600470246,22.28,20.59,20.576,29.15112048]
[1680600470549,115.0898,20.591,20.576,84.09815348]
[1680600473340,115.0898,20.591,20.577,20.0]
[1680600473556,115.0898,20.591,20.58,22.48]
[1680600473841,115.0898,20.591,20.581,17.0]
[1680600474027,115.0898,20.591,20.581,29.15112048]
[1680600478250,115.0898,20.591,20.581,12.15112048]
[1680600478444,115.0898,20.591,20.572,20.0]
[1680600478445,115.0898,20.591,20.573,36.47379791]
[1680600478643,20.0,20.59,20.574,20.0]
[1680600478950,20.0,20.59,20.574,12.15112048]
[1680600479149,20.0,20.59,20.575,12.15112048]
[1680600480450,20.0,20.59,20.576,17.0]
[1680600480961,20.0,20.59,20.576,29.15112048]
[1680600487753,20.0,20.59,20.576,12.15112048]
[1680600492061,20.0,20.59,20.572,20.0]
[1680600492263,20.0,20.59,20.573,17.0]
[1680600492464,20.0,20.59,20.574,32.15112048]
[1680600492658,20.0,20.59,20.575,17.0]
[1680600492860,20.0,20.59,20.575,29.15112048]
[1680600493172,20.0,20.59,20.576,12.15112048]
[1680600496566,115.0898,20.591,20.576,12.15112048]
[1680600496868,115.0898,20.591,20.577,17.0]
[1680600497372,115.0898,20.591,20.578,67.09815348]
[1680600497664,115.0898,20.591,20.579,17.0]
[1680600498564,115.0898,20.591,20.578,67.09815348]
[1680600498775,115.0898,20.591,20.574,20.0]
[1680600499165,20.0,20.59,20.572,20.0]
[1680600499547,20.0,20.59,20.573,12.15112048]
[1680600499762,20.0,20.59,20.574,20.0]
[1680600500063,20.0,20.59,20.574,32.15112048]
[1680600500364,17.0,20.589,20.574,32.15112048]
[1680600500962,20.0,20.588,20.574,32.15112048]
[1680600518869,20.0,20.588,20.574,20.0]
[1680600519091,20.0,20.588,20.572,32.15112048]
[1680600519288,20.0,20.588,20.573,17.0]
[1680600519483,20.0,20.588,20.574,20.0]
[1680600523696,20.0,20.588,20.573,12.15112048]
[1680600523896,37.0,20.587,20.566,19.44089]
[1680600524376,20.0,20.586,20.566,19.44089]
[1680600524576,37.0,20.585,20.566,19.44089]
[1680600524789,20.0,20.584,20.566,19.44089]
[1680600524988,130.8124,20.584,20.566,19.44089]
[1680600525193,130.8124,20.584,20.567,17.0]
[1680600525576,17.0,20.583,20.567,17.0]
[1680600525778,20.0,20.582,20.567,17.0]
[1680600530490,20.0,20.582,20.566,19.44089]
[1680600530897,20.0,20.582,20.565,12.15112048]
[1680600531188,20.0,20.582,20.566,17.0]
[1680600532289,17.0,20.581,20.565,12.15112048]
[1680600532485,20.0,20.58,20.565,12.15112048]
[1680600533099,20.0,20.58,20.563,54.947033]
[1680600533298,20.0,20.58,20.564,49.15112048]
[1680600533679,20.0,20.58,20.565,12.15112048]
[1680600534083,20.0,20.58,20.564,37.0]
[1680600538101,20.0,20.58,20.565,12.15112048]
[1680600543003,17.0,20.581,20.565,12.15112048]
[1680600543497,20.0,20.582,20.566,54.947033]
[1680600543899,20.0,20.582,20.566,67.09815348]
[1680600544297,110.8124,20.584,20.567,17.0]
[1680600544493,110.8124,20.584,20.567,71.947033]
[1680600544697,110.8124,20.584,20.568,54.947033]
[1680600544892,110.8124,20.584,20.569,17.0]
[1680600551510,20.0,20.585,20.57,20.0]
[1680600551711,20.0,20.588,20.571,17.0]
[1680600553212,57.0,20.59,20.571,17.0]
[1680600553213,37.0,20.59,20.571,17.0]
[1680600553511,20.0,20.589,20.572,20.0]
[1680600553814,20.0,20.589,20.573,17.0]
[1680600553999,20.0,20.589,20.574,20.0]
[1680600559831,20.0,20.59,20.574,20.0]
[1680600567128,42.48,20.59,20.574,20.0]
[1680600571531,42.48,20.59,20.574,20.0]
[1680600574132,17.0,20.589,20.574,20.0]
[1680600574428,20.0,20.588,20.571,20.0]
[1680600574627,17.0,20.587,20.571,20.0]
[1680600576126,20.0,20.586,20.571,20.0]
[1680600592439,20.0,20.586,20.571,32.15112048]
[1680600594750,20.0,20.588,20.571,32.15112048]
[1680600594939,20.0,20.589,20.572,17.0]
[1680600595140,17.0,20.588,20.572,17.0]
[1680600595332,17.0,20.588,20.573,20.0]
[1680600599047,20.0,20.589,20.573,20.0]
[1680600601648,42.48,20.59,20.573,20.0]
[1680600601849,42.48,20.59,20.574,17.0]
[1680600602953,22.48,20.59,20.574,17.0]
[1680600604150,113.4695,20.592,20.574,17.0]
[1680600604849,113.4695,20.592,20.575,20.0]
[1680600605039,113.4695,20.592,20.576,17.0]
[1680600607843,113.4695,20.592,20.577,20.0]
[1680600608043,113.4695,20.592,20.578,17.0]
[1680600608244,114.5673,20.597,20.578,17.0]
[1680600608444,114.5673,20.597,20.581,20.0]
[1680600608650,114.5673,20.597,20.582,17.0]
[1680600608861,114.5673,20.597,20.583,20.0]
[1680600609352,114.5673,20.597,20.584,17.0]
[1680600610866,22.48,20.6,20.585,20.0]
[1680600611063,22.48,20.6,20.586,17.0]
[1680600612259,20.0,20.602,20.586,17.0]
[1680600613864,20.0,20.602,20.584,17.0]
[1680600615657,20.0,20.602,20.583,20.0]
[1680600615864,20.0,20.602,20.582,20.0]
[1680600616669,20.0,20.602,20.583,20.0]
[1680600616850,20.0,20.602,20.584,17.0]
[1680600623070,244.7005,20.603,20.584,17.0]
[1680600624062,225.2865,20.603,20.584,17.0]
[1680600624473,225.2865,20.603,20.585,20.0]
[1680600624657,225.2865,20.603,20.586,17.0]
[1680600630976,225.2865,20.603,20.584,17.0]
[1680600631567,20.0,20.602,20.584,17.0]
[1680600631876,17.0,20.601,20.582,20.0]
[1680600632074,17.0,20.601,20.581,137.3071]
[1680600632274,17.0,20.601,20.582,20.0]
[1680600632481,17.0,20.601,20.583,20.0]
[1680600633171,17.0,20.601,20.584,17.0]
[1680600639586,20.0,20.6,20.584,17.0]
[1680600639973,20.0,20.6,20.583,20.0]
[1680600640174,17.0,20.599,20.582,20.0]
[1680600640587,20.0,20.598,20.582,20.0]
[1680600640786,17.0,20.597,20.582,20.0]
[1680600643191,47.81,20.6,20.582,20.0]
[1680600643493,17.0,20.599,20.583,17.0]
[1680600643695,47.81,20.6,20.583,17.0]
[1680600643896,47.81,20.6,20.584,20.0]
[1680600651988,20.0,20.6,20.584,20.0]
[1680600656291,20.0,20.602,20.584,20.0]
[1680600656499,17.0,20.601,20.584,20.0]
[1680600658786,17.0,20.601,20.585,17.0]
[1680600659507,33.86117053,20.604,20.585,17.0]
[1680600659708,14.44717053,20.604,20.585,17.0]
[1680600660398,14.44717053,20.604,20.586,20.0]
[1680600660600,14.44717053,20.604,20.587,17.0]
[1680600661102,19.41,20.608,20.587,17.0]
[1680600662006,25.46755606,20.605,20.587,17.0]
[1680600665108,10.77569092,20.605,20.587,17.0]
[1680600667909,10.77569092,20.605,20.585,17.0]
[1680600668209,20.0,20.602,20.585,17.0]
[1680600671413,17.0,20.601,20.585,17.0]
[1680600672212,20.0,20.6,20.585,17.0]
[1680600674312,17.0,20.599,20.584,20.0]
[1680600674499,17.0,20.599,20.583,20.0]
[1680600674700,17.0,20.599,20.584,17.0]
[1680600675016,20.0,20.6,20.584,17.0]
[1680600675309,17.0,20.599,20.584,17.0]
[1680600676415,17.0,20.599,20.583,20.0]
[1680600676600,17.0,20.599,20.584,17.0]
[1680600677414,17.0,20.599,20.583,20.0]
[1680600677609,17.0,20.599,20.582,20.0]
[1680600678113,20.0,20.598,20.582,20.0]
[1680600678313,17.0,20.597,20.582,20.0]
[1680600691605,22.35,20.6,20.582,20.0]
[1680600691811,22.35,20.6,20.583,17.0]
[1680600692023,22.35,20.6,20.584,40.0]
[1680600692218,22.35,20.6,20.585,17.0]
[1680600694029,225.2865,20.603,20.59,22.27]
[1680600696928,20.0,20.602,20.59,22.27]
[1680600697123,20.0,20.602,20.585,17.0]
[1680600701436,225.2865,20.603,20.585,17.0]
[1680600704029,225.2865,20.603,20.586,20.0]
[1680600704227,225.2865,20.603,20.587,17.0]
[1680600712026,225.2865,20.603,20.585,17.0]
[1680600712844,225.2865,20.603,20.586,20.0]
[1680600713137,225.2865,20.603,20.587,17.0]
[1680600714539,225.2865,20.603,20.59,27.79]
[1680600714739,225.2865,20.603,20.591,17.0]
[1680600719652,10.77569092,20.608,20.591,17.0]
[1680600719840,19.403,20.615,20.592,20.0]
[1680600720040,108.4624,20.611,20.593,17.0]
[1680600720251,108.4624,20.611,20.594,20.0]
[1680600720462,108.4624,20.611,20.595,17.0]
[1680600721351,17.0,20.61,20.594,32.15112048]
[1680600721653,20.0,20.609,20.594,32.15112048]
[1680600722657,20.0,20.609,20.595,17.0]
[1680600723338,108.4624,20.611,20.595,17.0]
[1680600726051,20.0,20.61,20.595,17.0]
[1680600726439,108.4624,20.611,20.595,17.0]
[1680600727552,20.0,20.61,20.595,17.0]
[1680600729249,108.4624,20.611,20.595,17.0]
[1680600729453,20.0,20.61,20.595,17.0]
[1680600730253,108.4624,20.611,20.595,17.0]
[1680600731055,20.0,20.61,20.595,17.0]
[1680600734254,108.4624,20.611,20.595,17.0]
[1680600734458,20.0,20.61,20.595,17.0]
[1680600734755,108.4624,20.611,20.595,17.0]
[1680600736362,37.0,20.61,20.595,17.0]
[1680600743580,20.0,20.61,20.595,17.0]
[1680600749988,20.0,20.61,20.594,20.0]
[1680600750168,17.0,20.609,20.593,20.0]
[1680600750369,17.0,20.609,20.594,17.0]
[1680600751285,20.0,20.608,20.593,20.0]
[1680600753983,20.0,20.608,20.59,28.05]
[1680600754192,20.0,20.606,20.584,14.73092335]
[1680600754394,37.0,20.605,20.583,44.83962804]
[1680600754684,37.0,20.605,20.584,20.0]
[1680600754990,20.0,20.604,20.585,20.0]
[1680600755291,131.1411,20.604,20.585,20.0]
[1680600755483,131.1411,20.604,20.584,20.0]
[1680600755790,115.4179,20.603,20.584,20.0]
[1680600755974,20.0,20.602,20.584,20.0]
[1680600756385,20.0,20.602,20.584,32.15112048]
[1680600756688,115.4179,20.603,20.585,20.0]
[1680600757078,115.4179,20.603,20.586,17.0]
[1680600758793,115.4179,20.603,20.586,20.0]
[1680600758993,115.4179,20.603,20.587,17.0]
[1680600760390,115.4179,20.603,20.587,29.15112048]
[1680600764096,115.4179,20.603,20.588,20.0]
[1680600764290,115.4179,20.603,20.589,17.0]
[1680600772088,115.4179,20.603,20.59,28.06]
[1680600772394,115.4179,20.603,20.591,17.0]
[1680600791422,20.0,20.602,20.591,17.0]
[1680600791621,20.0,20.602,20.589,17.0]
[1680600791830,20.0,20.602,20.581,117.3071]
[1680600792019,20.0,20.602,20.585,12.15112048]
[1680600792935,20.0,20.602,20.586,17.0]
[1680600813243,20.0,20.602,20.586,17.0]
[1680600836356,115.4179,20.603,20.586,17.0]
[1680600836658,20.0,20.601,20.586,17.0]
[1680600841358,20.0,20.601,20.587,17.0]
[1680600841558,20.0,20.601,20.585,17.0]
[1680600842147,22.46,20.6,20.585,17.0]
[1680600853763,20.0,20.599,20.585,17.0]
[1680600853960,37.0,20.599,20.584,20.0]
[1680600854150,37.0,20.599,20.583,20.0]
[1680600854351,116.1298,20.598,20.583,20.0]
[1680600854550,20.0,20.597,20.583,20.0]
[1680600860086,116.1298,20.598,20.583,20.0]
[1680600860384,116.1298,20.598,20.584,17.0]
[1680600872885,116.1298,20.598,20.585,20.0]
[1680600873087,116.1298,20.598,20.586,17.0]
[1680600882001,116.1298,20.598,20.59,22.3]
[1680600895413,116.1298,20.598,20.586,17.0]
[1680600906124,116.1298,20.598,20.586,71.93360106]
[1680600906306,116.1298,20.598,20.586,84.08472154]
[1680600906508,116.1298,20.598,20.587,20.0]
[1680600906706,116.1298,20.598,20.588,17.0]
[1680600910115,115.4179,20.603,20.588,17.0]
[1680600910503,115.4179,20.603,20.589,20.0]
[1680600910710,115.4179,20.603,20.59,17.0]